fUST/lending_fUST_20240512
["ID","MTS","AMOUNT","RATE_DAILY","PERIOD"]
[326842391,1715506248979,-3281.38,0.00034998,5]
[326842392,1715506248988,-3281.38,0.00034998,5]
[326842393,1715506248998,-3281.42254882,0.00034998,5]
[326842394,1715506249007,-151.0,0.00034998,2]
[326842395,1715506249017,-151.0,0.00034998,2]
[326842396,1715506249026,-151.0,0.00034998,2]
[326842397,1715506249035,-603.560771,0.00034998,2]
[326842398,1715506249044,-603.560771,0.00034998,2]
[326842399,1715506249053,-603.560771,0.00034998,2]
[326842400,1715506249062,-603.560771,0.00034998,2]
[326842401,1715506249071,-603.560771,0.00034998,2]
[326842402,1715506249079,-603.560771,0.00034998,2]
[326842403,1715506249088,-6658.43,0.00034998,2]
[326842404,1715506249097,-6658.43,0.00034998,2]
[326842405,1715506249106,-6658.43,0.00034998,2]
[326842406,1715506249115,-6658.43,0.00034998,2]
[326842407,1715506249124,-6658.43,0.00034998,2]
[326842408,1715506249134,-905.948542,0.00034998,2]
[326842409,1715506249146,-905.948542,0.00034998,2]
[326842410,1715506249155,-6658.43,0.00034998,2]
[326842411,1715506249165,-6658.43,0.00034998,2]
[326842412,1715506249174,-6658.43,0.00034998,2]
[326842413,1715506249183,-6658.43,0.00034998,2]
[326842414,1715506249194,-6658.43,0.00034998,2]
[326842415,1715506249204,-905.948542,0.00034998,2]
[326842416,1715506249213,-905.948542,0.00034998,2]
[326842417,1715506249222,-1000.0,0.00034999,3]
[326842418,1715506249232,-133248.25285937,0.00034999,14]
[326842419,1715506249242,-176.155779,0.00034999,2]
[326842420,1715506249251,-176.155779,0.00034999,2]
[326842421,1715506249260,-232.277312,0.00034999,2]
[326842422,1715506249269,-232.277312,0.00034999,2]
[326842423,1715506249278,-232.277312,0.00034999,2]
[326842424,1715506249288,-232.277312,0.00034999,2]
[326842425,1715506249297,-151.0,0.00034999,2]
[326842426,1715506249306,-269.967704,0.00034999,2]
[326842427,1715506249315,-685.8226,0.00034999,2]
[326842428,1715506249325,-685.8226,0.00034999,2]
[326842429,1715506249334,-151.0,0.00034999,2]
[326842430,1715506249344,-151.0,0.00034999,2]
[326842431,1715506249353,-151.0,0.00034999,2]
[326842432,1715506249363,-603.560771,0.00034999,2]
[326842433,1715506249374,-603.560771,0.00034999,2]
[326842434,1715506249383,-905.948542,0.00034999,2]
[326842435,1715506249392,-905.948542,0.00034999,2]
[326842436,1715506249402,-227272.33630992,0.00035,30]
[326842437,1715506757224,-800000.0,0.00035,30]
[326842438,1715506762593,-150.0,0.0004099,120]
[326842439,1715506762616,-453.67139372,0.0004099,30]
[326842440,1715506762638,-719.17,0.0004099,30]
[326842441,1715506762660,-980.9430477,0.0004099,35]
[326842442,1715506762683,-33613.67340392,0.0004099,30]
[326842443,1715506762706,-557.0,0.0004099,30]
[326842444,1715506762729,-557.0,0.0004099,30]
[326842445,1715506762752,-557.0,0.0004099,30]
[326842446,1715506762775,-557.0,0.0004099,30]
[326842447,1715506762799,-557.0,0.0004099,30]
[326842448,1715506762821,-557.0,0.0004099,30]
[326842449,1715506762845,-557.0,0.0004099,30]
[326842450,1715506762867,-557.0,0.0004099,30]
[326842451,1715506762891,-557.0,0.0004099,30]
[326842452,1715506762914,-557.0,0.0004099,30]
[326842453,1715506762936,-557.0,0.0004099,30]
[326842454,1715506762959,-557.0,0.0004099,30]
[326842455,1715506762981,-557.0,0.0004099,30]
[326842456,1715506763003,-557.0,0.0004099,30]
[326842457,1715506763030,-557.0,0.0004099,30]
[326842458,1715506763051,-557.0,0.0004099,30]
[326842459,1715506763075,-557.0,0.0004099,30]
[326842460,1715506763098,-557.0,0.0004099,30]
[326842461,1715506763121,-557.0,0.0004099,30]
[326842462,1715506763143,-557.0,0.0004099,30]
[326842463,1715506763165,-557.0,0.0004099,30]
[326842464,1715506763187,-557.0,0.0004099,30]
[326842465,1715506763209,-557.0,0.0004099,30]
[326842466,1715506763232,-557.0,0.0004099,30]
[326842467,1715506763255,-557.0,0.0004099,30]
[326842468,1715506763278,-557.0,0.0004099,30]
[326842469,1715506763300,-557.0,0.0004099,30]
[326842470,1715506763322,-564.53797827,0.0004099,30]
[326842471,1715506763345,-2565.0,0.0004099,30]
[326842472,1715506763366,-2565.0,0.0004099,30]
[326842473,1715506763389,-160.03216097,0.0004099,30]
[326842474,1715506769132,-800000.0,0.00035,30]
[326842475,1715506774444,-800000.0,0.00035,30]
[326842476,1715506777449,-68377.51180606,0.00035,30]
[326842477,1715506777471,-159.38961927,0.00035,30]
[326842478,1715506777495,-935.53742692,0.000356,30]
[326842479,1715506777520,-790.51054256,0.00038,30]
[326842480,1715506777543,-257.53140512,0.00038,120]
[326842481,1715506777566,-3286.06085778,0.000385,60]
[326842482,1715506777588,-4987.5362,0.0003935,30]
[326842483,1715506777612,-204.36130364,0.0004,120]
[326842484,1715506777635,-696.9078096,0.0004,120]
[326842485,1715506777657,-500.0,0.0004,30]
[326842486,1715506777680,-169.40800833,0.0004,120]
[326842487,1715506777702,-5911.1552708,0.0004,60]
[326842488,1715506777724,-151.0179077,0.00040326,30]
[326842489,1715506777748,-723.18845795,0.00040361,30]
[326842490,1715506777771,-153.15121778,0.00040446,30]
[326842491,1715506777793,-723.18845795,0.00040784,30]
[326842492,1715506777818,-500.0,0.00041096,31]
[326842493,1715506777842,-500.0,0.00041096,31]
[326842494,1715506777866,-500.0,0.00041096,31]
[326842495,1715506777890,-500.0,0.00041096,31]
[326842496,1715506777913,-500.0,0.00041096,31]
[326842497,1715506777937,-500.0,0.00041096,31]
[326842498,1715506777960,-500.0,0.00041096,31]
[326842499,1715506777982,-500.0,0.00041096,31]
[326842500,1715506778005,-500.0,0.00041096,31]
[326842501,1715506778033,-500.0,0.00041096,31]
[326842502,1715506778060,-500.0,0.00041096,31]
[326842503,1715506778084,-249.70171247,0.00041096,31]
[326842504,1715506778109,-500.0,0.00041096,31]
[326842505,1715506778133,-500.0,0.00041096,31]
[326842506,1715506778155,-500.0,0.00041096,31]
[326842507,1715506778178,-500.0,0.00041096,31]
[326842508,1715506778201,-500.0,0.00041096,31]
[326842509,1715506778225,-500.0,0.00041096,31]
[326842510,1715506778248,-153.15121778,0.00041133,30]
[326842511,1715506778273,-1249.41935628,0.00041178,30]
[326842512,1715506778296,-1249.41935628,0.00041287,30]
[326842513,1715506778320,-1306.30652155,0.00041365,30]
[326842514,1715506778345,-1306.30652155,0.00041374,30]
[326842515,1715506778367,-723.18845795,0.00041389,30]
[326842516,1715506778389,-150.00367065,0.00041493,30]
[326842517,1715506778413,-1306.30652155,0.00041523,30]
[326842518,1715506778436,-1306.30652155,0.00041832,30]
[326842519,1715506778459,-1306.30652155,0.0004184,30]
[326842520,1715506778482,-1002.0,0.00042,120]
[326842521,1715506778505,-723.18845795,0.00042199,30]
[326842522,1715506778529,-723.18845795,0.00042391,30]
[326842523,1715506778553,-2098.66031743,0.000425,30]
[326842524,1715506778577,-1306.30652155,0.00042738,30]
[326842525,1715506778601,-723.18845795,0.00042952,30]
[326842526,1715506778626,-151.0179077,0.00043085,30]
[326842527,1715506778801,-151.0179077,0.00043278,30]
[326842528,1715506778831,-151.0179077,0.0004346,30]
[326842529,1715506778856,-1306.30652155,0.00043465,30]
[326842530,1715506778880,-151.0179077,0.00043554,30]
[326842531,1715506778903,-1306.30652155,0.00043601,30]
[326842532,1715506778928,-1249.41935628,0.00043716,30]
[326842533,1715506778951,-1249.41935628,0.00043727,30]
[326842534,1715506778974,-723.18845795,0.00043831,30]
[326842535,1715506778997,-1306.30652155,0.00043987,30]
[326842536,1715506779024,-151.0179077,0.0004407,30]
[326842537,1715506779049,-1249.41935628,0.00044334,30]
[326842538,1715506779075,-1249.41935628,0.00044692,30]
[326842539,1715506779102,-151.0179077,0.00044987,30]
[326842540,1715506779127,-1780.98926523,0.00045,120]
[326842541,1715506779153,-151.0,0.00045,120]
[326842542,1715506779179,-151.0179077,0.0004527,30]
[326842543,1715506779205,-1249.41935628,0.00045535,30]
[326842544,1715506779230,-1306.30652155,0.00045766,30]
[326842545,1715506779255,-1000.0,0.00046,30]
[326842546,1715506779279,-151.0,0.00046192,120]
[326842547,1715506779305,-1249.41935628,0.00046202,30]
[326842548,1715506779328,-723.18845795,0.00046389,30]
[326842549,1715506779352,-1249.41935628,0.00046623,30]
[326842550,1715506779375,-723.18845795,0.00046626,30]
[326842551,1715506779399,-1249.41935628,0.00046895,30]
[326842552,1715506779422,-723.18845795,0.00047168,30]
[326842553,1715506779446,-1249.41935628,0.00047171,30]
[326842554,1715506779469,-158.0282973,0.0004732,30]
[326842555,1715506779492,-151.0,0.0004737,120]
[326842556,1715506779515,-151.0179077,0.00047384,30]
[326842557,1715506779540,-1306.30652155,0.00047547,30]
[326842558,1715506779564,-1306.30652155,0.00047629,30]
[326842559,1715506779587,-166.0954204,0.00047735,30]
[326842560,1715506779612,-723.18845795,0.00048006,30]
[326842561,1715506779635,-166.0954204,0.00048066,30]
[326842562,1715506779658,-151.0179077,0.00048134,30]
[326842563,1715506779682,-153.15121778,0.00048223,30]
[326842564,1715506779705,-1306.30652155,0.00048299,30]
[326842565,1715506779728,-723.18845795,0.00048339,30]
[326842566,1715506779752,-1249.41935628,0.00048473,30]
[326842567,1715506779776,-151.0,0.00048548,120]
[326842568,1715506779799,-158.0282973,0.00048601,30]
[326842569,1715506779823,-1306.30652155,0.00048842,30]
[326842570,1715506779846,-153.15121778,0.00048857,30]
[326842571,1715506779873,-153.15121778,0.0004889,30]
[326842572,1715506779897,-723.18845795,0.00048929,30]
[326842573,1715506779923,-1249.41935628,0.00048948,30]
[326842574,1715506779948,-151.0179077,0.00048982,30]
[326842575,1715506779973,-200.0,0.0004904,120]
[326842576,1715506779998,-151.0179077,0.00049106,30]
[326842577,1715506780025,-1000.0,0.00049195,30]
[326842578,1715506780050,-1306.30652155,0.00049424,30]
[326842579,1715506780075,-151.0179077,0.00049622,30]
[326842580,1715506780101,-151.0,0.00049726,120]
[326842581,1715506780127,-403.55519046,0.000499,74]
[326842582,1715506780150,-1306.30652155,0.0004998,30]
[326842583,1715506780174,-307.58461738,0.00049999,120]
[326842584,1715506780198,-500.0,0.00049999,120]
[326842585,1715506780221,-500.0,0.00049999,120]
[326842586,1715506780246,-500.0,0.00049999,120]
[326842587,1715506780271,-500.0,0.00049999,120]
[326842588,1715506780295,-249.87216248,0.00049999,120]
[326842589,1715506780320,-500.0,0.00049999,120]
[326842590,1715506780344,-500.0,0.00049999,120]
[326842591,1715506780369,-500.0,0.00049999,120]
[326842592,1715506780393,-5000.0,0.0005,45]
[326842593,1715506780416,-533.0,0.0005,120]
[326842594,1715506780438,-2498.21073288,0.0005,120]
[326842595,1715506780462,-240.9994516,0.0005,120]
[326842596,1715506780486,-504.84524637,0.0005,120]
[326842597,1715506780509,-1000.0,0.0005,30]
[326842598,1715506780534,-1497.77422201,0.0005,90]
[326842599,1715506780558,-200.24260257,0.0005,120]
[326842600,1715506780581,-500.0,0.0005,30]
[326842601,1715506780605,-151.0,0.0005,120]
[326842602,1715506780629,-4200.29035368,0.0005,60]
[326842603,1715506780654,-25898.33228735,0.0005,120]
[326842604,1715506780677,-153.15121778,0.00050028,60]
[326842605,1715506780700,-1306.30652155,0.00050238,60]
[326842606,1715506780724,-200.0,0.00050291,120]
[326842607,1715506780748,-153.15121778,0.00050474,60]
[326842608,1715506780772,-1249.41935628,0.00050534,60]
[326842609,1715506780796,-1306.30652155,0.00050543,60]
[326842610,1715506780820,-1249.41935628,0.00050757,60]
[326842611,1715506780844,-1306.30652155,0.00050757,60]
[326842612,1715506780870,-151.0,0.00050904,120]
[326842613,1715506780892,-151.0179077,0.00050908,60]
[326842614,1715506780915,-150.00367065,0.00051252,60]
[326842615,1715506780939,-1249.41935628,0.00051643,60]
[326842616,1715506780962,-160.80168946,0.000518,120]
[326842617,1715506780985,-723.18845795,0.00051885,60]
[326842618,1715506781008,-151.0,0.00052082,120]
[326842619,1715506781035,-590719.49386836,0.000522,30]
[326842620,1715506797992,-11431.76835517,0.00027,15]
[326842621,1715506798024,-935.67306823,0.000356,30]
[326842622,1715506798051,-153183.284836,0.00036,14]
[326842623,1715506798074,-3343.592414,0.00036,14]
[326842624,1715506798102,-5000.0,0.000399,10]
[326842625,1715506798128,-296.5367029,0.0004,15]
[326842626,1715506798152,-195.63466489,0.0004,15]
[326842627,1715506798176,-625613.50995881,0.0004,15]
[326842628,1715506801988,-160497.92664312,0.0004,15]
[326842629,1715506802014,-773.80239219,0.00041908,28]
[326842630,1715506802047,-2099.18990223,0.000425,30]
[326842631,1715506802072,-281.0,0.00045,21]
[326842632,1715506802098,-773.80239219,0.0004894,28]
[326842633,1715506802125,-205.19131335,0.00049,10]
[326842634,1715506802149,-160.0,0.00049847,10]
[326842635,1715506802172,-513.08362698,0.0005,10]
[326842636,1715506802195,-960.01494106,0.0005,10]
[326842637,1715506802221,-160.0,0.00050876,11]
[326842638,1715506802246,-155.60491391,0.0005144,10]
[326842639,1715506802273,-159280.50613164,0.000522,30]
[326842640,1715506802298,-150.00367065,0.00052207,60]
[326842641,1715506802323,-153.15121778,0.00052279,60]
[326842642,1715506802350,-31388.0,0.0005234,120]
[326842643,1715506802373,-723.18845795,0.00052343,60]
[326842644,1715506802397,-166.0954204,0.00052689,60]
[326842645,1715506802423,-1249.41935628,0.00052949,60]
[326842646,1715506802449,-5000.0,0.00053,90]
[326842647,1715506802474,-22176.480221,0.00053,120]
[326842648,1715506802499,-466.0,0.00053,120]
[326842649,1715506802524,-150.00367065,0.00053114,60]
[326842650,1715506802550,-1249.41935628,0.00053228,60]
[326842651,1715506802574,-151.0,0.0005326,120]
[326842652,1715506802599,-153.15121778,0.00053322,60]
[326842653,1715506802623,-723.18845795,0.00053423,60]
[326842654,1715506802654,-723.18845811,0.00053484,60]
[326842655,1715506802683,-5000.0,0.000535,10]
[326842656,1715506802708,-150.00367065,0.00053571,60]
[326842657,1715506802733,-1249.41935628,0.00053621,60]
[326842658,1715506802757,-158.02829731,0.00053767,60]
[326842659,1715506802781,-1306.30652155,0.00053922,60]
[326842660,1715506802805,-4834.99211548,0.00054,90]
[326842661,1715506803003,-243.66686401,0.00054,120]
[326842662,1715506803029,-2000.0,0.00054,120]
[326842663,1715506803053,-151.01790788,0.00054003,60]
[326842664,1715506803077,-10000.0,0.00054164,10]
[326842665,1715506803104,-200.0,0.00054168,120]
[326842666,1715506803130,-1249.41935637,0.00054214,60]
[326842667,1715506803153,-153.15121787,0.00054223,60]
[326842668,1715506803178,-200.0,0.00054292,120]
[326842669,1715506803200,-150.00367065,0.0005438,60]
[326842670,1715506803224,-1306.30652155,0.00054402,60]
[326842671,1715506803248,-151.0,0.00054438,120]
[326842672,1715506803271,-1306.30652156,0.00054747,60]
[326842673,1715506803294,-500.0,0.00054794,120]
[326842674,1715506803318,-500.0,0.00054794,120]
[326842675,1715506803341,-500.0,0.00054794,120]
[326842676,1715506803365,-502.13133616,0.00054794,120]
[326842677,1715506803388,-500.0,0.00054794,120]
[326842678,1715506803411,-500.0,0.00054794,120]
[326842679,1715506803434,-500.0,0.00054794,120]
[326842680,1715506803458,-540.93972771,0.00054794,120]
[326842681,1715506803481,-500.0,0.00054794,120]
[326842682,1715506803505,-500.0,0.00054794,120]
[326842683,1715506803529,-500.0,0.00054794,120]
[326842684,1715506803554,-465.44519791,0.00054794,120]
[326842685,1715506803577,-205.07508129,0.00054794,120]
[326842686,1715506803601,-500.0,0.00054794,120]
[326842687,1715506803625,-500.0,0.00054794,120]
[326842688,1715506803648,-229.51254058,0.00054794,120]
[326842689,1715506803673,-500.0,0.00054794,120]
[326842690,1715506803699,-502.60860247,0.00054794,120]
[326842691,1715506803724,-500.0,0.00054794,120]
[326842692,1715506803751,-500.0,0.00054794,120]
[326842693,1715506803776,-502.32341109,0.00054794,120]
[326842694,1715506803803,-502.31808794,0.00054794,120]
[326842695,1715506803828,-500.0,0.00054794,120]
[326842696,1715506803852,-500.0,0.00054794,120]
[326842697,1715506803876,-645.64,0.00054794,120]
[326842698,1715506803899,-504.50800848,0.00054794,120]
[326842699,1715506803922,-500.0,0.00054794,120]
[326842700,1715506803946,-500.0,0.00054794,120]
[326842701,1715506803969,-500.0,0.00054794,120]
[326842702,1715506803991,-535.61414565,0.00054794,120]
[326842703,1715506804016,-500.0,0.00054794,120]
[326842704,1715506804045,-500.0,0.00054794,120]
[326842705,1715506804068,-500.0,0.00054794,120]
[326842706,1715506804090,-501.04,0.00054794,120]
[326842707,1715506804114,-500.0,0.00054794,120]
[326842708,1715506804145,-501.42453569,0.00054794,120]
[326842709,1715506804179,-849.72,0.00054794,120]
[326842710,1715506804206,-500.0,0.00054794,120]
[326842711,1715506804233,-500.0,0.00054794,120]
[326842712,1715506804260,-500.0,0.00054794,120]
[326842713,1715506804286,-500.0,0.00054794,120]
[326842714,1715506804312,-500.0,0.00054794,120]
[326842715,1715506804336,-500.0,0.00054794,120]
[326842716,1715506804361,-500.0,0.00054794,120]
[326842717,1715506804385,-500.0,0.00054794,120]
[326842718,1715506804409,-500.0,0.00054794,120]
[326842719,1715506804433,-500.0,0.00054794,120]
[326842720,1715506804457,-501.54464358,0.00054794,120]
[326842721,1715506804480,-500.0,0.00054794,120]
[326842722,1715506804504,-500.0,0.00054794,120]
[326842723,1715506804527,-500.0,0.00054794,120]
[326842724,1715506804551,-440.55766125,0.00054794,120]
[326842725,1715506804574,-500.0,0.00054794,120]
[326842726,1715506804598,-500.0,0.00054794,120]
[326842727,1715506804621,-589.15,0.00054794,120]
[326842728,1715506804646,-281.52223422,0.00054794,120]
[326842729,1715506804669,-539.43881476,0.00054794,120]
[326842730,1715506804692,-500.0,0.00054794,120]
[326842731,1715506804716,-500.0,0.00054794,120]
[326842732,1715506804740,-500.0,0.00054794,120]
[326842733,1715506804763,-320.12523127,0.00054794,120]
[326842734,1715506804785,-509.26051372,0.00054794,120]
[326842735,1715506804808,-500.0,0.00054794,120]
[326842736,1715506804831,-500.0,0.00054794,120]
[326842737,1715506804854,-500.0,0.00054794,120]
[326842738,1715506804878,-555.14,0.00054794,120]
[326842739,1715506804901,-176.90843394,0.00054794,120]
[326842740,1715506804925,-500.0,0.00054794,120]
[326842741,1715506804948,-519.46054452,0.00054794,120]
[326842742,1715506804971,-501.80506602,0.00054794,120]
[326842743,1715506804994,-610.04,0.00054794,120]
[326842744,1715506805020,-500.0,0.00054794,120]
[326842745,1715506805046,-1388.18,0.00054794,120]
[326842746,1715506805070,-345.15231646,0.00054794,120]
[326842747,1715506805096,-500.0,0.00054794,120]
[326842748,1715506805120,-500.0,0.00054794,120]
[326842749,1715506805148,-500.0,0.00054794,120]
[326842750,1715506805172,-500.0,0.00054794,120]
[326842751,1715506805196,-500.0,0.00054794,120]
[326842752,1715506805220,-500.0,0.00054794,120]
[326842753,1715506805244,-1185.46,0.00054794,120]
[326842754,1715506805268,-500.0,0.00054794,120]
[326842755,1715506805292,-625.85,0.00054794,120]
[326842756,1715506805316,-500.0,0.00054794,120]
[326842757,1715506805341,-500.0,0.00054794,120]
[326842758,1715506805364,-500.0,0.00054794,120]
[326842759,1715506805387,-278.81427775,0.00054794,120]
[326842760,1715506805410,-500.0,0.00054794,120]
[326842761,1715506805434,-500.0,0.00054794,120]
[326842762,1715506805458,-500.0,0.00054794,120]
[326842763,1715506805482,-534.54013207,0.00054794,120]
[326842764,1715506805505,-475.1695692,0.00054794,120]
[326842765,1715506805528,-500.0,0.00054794,120]
[326842766,1715506805707,-500.0,0.00054794,120]
[326842767,1715506805734,-332.02542512,0.00054794,120]
[326842768,1715506805760,-673.28,0.00054794,120]
[326842769,1715506805786,-500.0,0.00054794,120]
[326842770,1715506805811,-235.09586529,0.00054794,120]
[326842771,1715506805836,-513.88,0.00054794,120]
[326842772,1715506805860,-442.3185059,0.00054794,120]
[326842773,1715506805884,-500.0,0.00054794,120]
[326842774,1715506805907,-504.05123794,0.00054794,120]
[326842775,1715506805931,-500.0,0.00054794,120]
[326842776,1715506805954,-502.40246308,0.00054794,120]
[326842777,1715506805978,-502.45528482,0.00054794,120]
[326842778,1715506806001,-500.0,0.00054794,120]
[326842779,1715506806030,-500.0,0.00054794,120]
[326842780,1715506806053,-500.0,0.00054794,120]
[326842781,1715506806077,-501.14619017,0.00054794,120]
[326842782,1715506806102,-508.17994064,0.00054794,120]
[326842783,1715506806125,-500.0,0.00054794,120]
[326842784,1715506806149,-464.40478798,0.00054794,120]
[326842785,1715506806172,-500.0,0.00054794,120]
[326842786,1715506806195,-500.0,0.00054794,120]
[326842787,1715506806219,-176.70465601,0.00054794,120]
[326842788,1715506806244,-567.18,0.00054794,120]
[326842789,1715506806269,-567.18,0.00054794,120]
[326842790,1715506806294,-500.0,0.00054794,120]
[326842791,1715506806320,-567.18,0.00054794,120]
[326842792,1715506806346,-567.18,0.00054794,120]
[326842793,1715506806372,-567.18,0.00054794,120]
[326842794,1715506806397,-567.18,0.00054794,120]
[326842795,1715506806421,-567.18,0.00054794,120]
[326842796,1715506806445,-567.18,0.00054794,120]
[326842797,1715506806473,-567.18,0.00054794,120]
[326842798,1715506806499,-567.18,0.00054794,120]
[326842799,1715506806521,-567.18,0.00054794,120]
[326842800,1715506806544,-567.18,0.00054794,120]
[326842801,1715506806569,-571.03,0.00054794,120]
[326842802,1715506806593,-571.03,0.00054794,120]
[326842803,1715506806616,-571.03,0.00054794,120]
[326842804,1715506806641,-567.18,0.00054794,120]
[326842805,1715506806664,-567.18,0.00054794,120]
[326842806,1715506806689,-500.0,0.00054794,120]
[326842807,1715506806713,-571.03,0.00054794,120]
[326842808,1715506806739,-567.18,0.00054794,120]
[326842809,1715506806764,-571.03,0.00054794,120]
[326842810,1715506806787,-567.18,0.00054794,120]
[326842811,1715506806810,-571.03,0.00054794,120]
[326842812,1715506806834,-567.18,0.00054794,120]
[326842813,1715506806856,-571.03,0.00054794,120]
[326842814,1715506806881,-567.18,0.00054794,120]
[326842815,1715506806905,-571.03,0.00054794,120]
[326842816,1715506806930,-567.18,0.00054794,120]
[326842817,1715506806953,-571.03,0.00054794,120]
[326842818,1715506806979,-567.18,0.00054794,120]
[326842819,1715506807003,-571.03,0.00054794,120]
[326842820,1715506807031,-567.18,0.00054794,120]
[326842821,1715506807054,-571.03,0.00054794,120]
[326842822,1715506807082,-567.18,0.00054794,120]
[326842823,1715506807108,-571.03,0.00054794,120]
[326842824,1715506807135,-567.18,0.00054794,120]
[326842825,1715506807158,-571.03,0.00054794,120]
[326842826,1715506807181,-567.37128074,0.00054794,120]
[326842827,1715506807204,-571.03,0.00054794,120]
[326842828,1715506807227,-571.03,0.00054794,120]
[326842829,1715506807250,-571.03,0.00054794,120]
[326842830,1715506807278,-571.03,0.00054794,120]
[326842831,1715506807304,-571.03,0.00054794,120]
[326842832,1715506807327,-571.03,0.00054794,120]
[326842833,1715506807350,-571.03,0.00054794,120]
[326842834,1715506807374,-571.03,0.00054794,120]
[326842835,1715506807398,-571.03,0.00054794,120]
[326842836,1715506807421,-571.03,0.00054794,120]
[326842837,1715506807443,-571.18055629,0.00054794,120]
[326842838,1715506807467,-500.0,0.00054794,120]
[326842839,1715506807490,-500.0,0.00054794,120]
[326842840,1715506807513,-605.64,0.00054794,120]
[326842841,1715506807536,-500.0,0.00054794,120]
[326842842,1715506807559,-500.0,0.00054794,120]
[326842843,1715506807583,-500.0,0.00054794,120]
[326842844,1715506807606,-461.73422302,0.00054794,120]
[326842845,1715506807630,-500.0,0.00054794,120]
[326842846,1715506807662,-694.76,0.00054794,120]
[326842847,1715506807695,-498.40750367,0.00054794,120]
[326842848,1715506807722,-500.92359023,0.00054794,120]
[326842849,1715506807749,-500.0,0.00054794,120]
[326842850,1715506807776,-201.48228637,0.00054794,120]
[326842851,1715506807802,-500.0,0.00054794,120]
[326842852,1715506807829,-500.0,0.00054794,120]
[326842853,1715506807856,-851.93,0.00054794,120]
[326842854,1715506807882,-500.0,0.00054794,120]
[326842855,1715506807908,-500.0,0.00054794,120]
[326842856,1715506807935,-500.0,0.00054794,120]
[326842857,1715506807959,-1275.77,0.00054794,120]
[326842858,1715506807983,-639.85372902,0.00054794,120]
[326842859,1715506808007,-500.93420273,0.00054794,120]
[326842860,1715506808035,-500.0,0.00054794,120]
[326842861,1715506808059,-500.0,0.00054794,120]
[326842862,1715506808084,-249.1087419,0.00054794,120]
[326842863,1715506808111,-500.0,0.00054794,120]
[326842864,1715506808136,-700.0,0.00054794,120]
[326842865,1715506808161,-247.5703797,0.00054794,120]
[326842866,1715506808185,-500.0,0.00054794,120]
[326842867,1715506808209,-728.36,0.00054794,120]
[326842868,1715506808233,-152.80143447,0.00054794,120]
[326842869,1715506808258,-500.0,0.00054794,120]
[326842870,1715506808282,-500.0,0.00054794,120]
[326842871,1715506808480,-614.26,0.00054794,120]
[326842872,1715506808505,-500.0,0.00054794,120]
[326842873,1715506808528,-333.70153902,0.00054794,120]
[326842874,1715506808553,-623.85,0.00054794,120]
[326842875,1715506808577,-500.0,0.00054794,120]
[326842876,1715506808601,-500.0,0.00054794,120]
[326842877,1715506808624,-1477.25,0.00054794,120]
[326842878,1715506808648,-500.0,0.00054794,120]
[326842879,1715506808671,-845.15,0.00054794,120]
[326842880,1715506808696,-500.0,0.00054794,120]
[326842881,1715506808721,-982.6,0.00054794,120]
[326842882,1715506808744,-500.0,0.00054794,120]
[326842883,1715506808767,-568.11506098,0.00054794,120]
[326842884,1715506808791,-500.0,0.00054794,120]
[326842885,1715506808814,-500.0,0.00054794,120]
[326842886,1715506808838,-500.0,0.00054794,120]
[326842887,1715506808862,-502.05618222,0.00054794,120]
[326842888,1715506808886,-503.07200119,0.00054794,120]
[326842889,1715506808910,-1101.7,0.00054794,120]
[326842890,1715506808932,-501.23275539,0.00054794,30]